bitfinex/quotes_SOLUSD_20250803
["timestamp","ask_amount","ask_price","bid_price","bid_amount"]
[1754263175973,0.67,163.31,163.28,6.79645991]
[1754263176353,0.67,163.3,163.23,32.78625006]
[1754263176778,0.67,163.3,163.27,10.81756045]
[1754263176956,0.67,163.3,163.26,10.81756045]
[1754263177349,0.67,163.29,163.23,26.66]
[1754263177544,0.67,163.29,163.26,10.81756045]
[1754263178456,0.67,163.29,163.26,21.63512045]
[1754263178675,0.67,163.29,163.26,10.81756]
[1754263178877,0.67,163.29,163.27,10.81756045]
[1754263179283,0.67,163.31,163.27,10.81756045]
[1754263179487,10.85458173,163.32,163.27,10.81756045]
[1754263179488,0.67,163.3,163.27,10.81756045]
[1754263180585,0.67,163.29,163.27,10.81756045]
[1754263180789,10.81756045,163.31,163.26,10.81756]
[1754263180979,45.83,163.28,163.25,10.81756045]
[1754263181379,0.67,163.27,163.25,10.81756045]
[1754263181597,45.16,163.28,163.24,10.81756045]
[1754263181778,45.83,163.28,163.25,10.81756045]
[1754263182098,45.16,163.28,163.26,10.81756045]
[1754263182403,45.16,163.28,163.25,10.81756045]
[1754263182572,45.16,163.28,163.24,10.81756045]
[1754263183279,45.16,163.28,163.24,11.47756045]
[1754263183713,45.16,163.28,163.24,10.81756045]
[1754263183891,45.08,163.28,163.26,10.81756045]
[1754263184093,45.08,163.28,163.27,10.81756045]
[1754263184417,45.08,163.28,163.26,10.81756045]
[1754263184617,45.08,163.28,163.26,11.51756045]
[1754263185610,45.08,163.28,163.26,0.7]
[1754263185771,45.08,163.28,163.26,11.51756045]
[1754263187396,0.69702128,163.32,163.27,0.7]
[1754263187577,45.04,163.31,163.27,11.51756045]
[1754263187982,56.51756045,163.31,163.25,19.10999]
[1754263188201,56.51756045,163.31,163.26,10.81756045]
[1754263188503,56.51756045,163.31,163.26,11.51756045]
[1754263188688,45.7,163.31,163.27,10.81756045]
[1754263188878,45.7,163.31,163.27,0.7]
[1754263189199,45.7,163.31,163.27,11.51756045]
[1754263189874,45.7,163.31,163.27,0.7]
[1754263190075,56.51756045,163.31,163.26,10.81756045]
[1754263190271,45.7,163.31,163.26,0.7]
[1754263190477,45.7,163.31,163.27,10.81756045]
[1754263190694,45.04,163.31,163.28,10.81756045]
[1754263190881,45.04,163.31,163.28,11.51756045]
[1754263191091,45.04,163.31,163.27,10.81756045]
[1754263191294,45.7,163.31,163.27,10.81756045]
[1754263191494,0.66,163.3,163.25,18.40999]
[1754263191698,45.04,163.31,163.25,18.40999]
[1754263191888,56.51756045,163.31,163.26,10.81756045]
[1754263192090,45.7,163.31,163.26,0.7]
[1754263192313,45.7,163.31,163.27,10.81756045]
[1754263192478,45.7,163.31,163.26,0.7]
[1754263192678,0.66,163.3,163.27,10.81756045]
[1754263193711,45.04,163.31,163.27,11.51756045]
[1754263194026,45.12,163.3,163.28,11.51756045]
[1754263194211,45.12,163.3,163.28,18.407731]
[1754263194410,45.12,163.3,163.28,29.22529145]
[1754263194599,45.12,163.3,163.28,18.407731]
[1754263194799,45.12,163.3,163.28,29.22529145]
[1754263194994,45.78,163.3,163.26,0.7]
[1754263195301,45.12,163.3,163.27,29.22642145]
[1754263195823,45.12,163.3,163.27,10.81756045]
[1754263196700,0.03702128,163.32,163.29,6.76093392]
[1754263196901,45.07702128,163.32,163.3,7.46093392]
[1754263197511,45.07702128,163.32,163.31,6.76093392]
[1754263198427,0.03,163.35,163.31,8.07326629]
[1754263198609,0.03,163.35,163.34,6.76093392]
[1754263199124,0.03,163.35,163.34,7.46093392]
[1754263199809,0.03,163.35,163.34,6.76093392]
[1754263200199,0.03,163.35,163.33,6.76093392]
[1754263200399,0.03,163.35,163.28,0.61244487]
[1754263200400,6.79093392,163.35,163.28,0.61244487]
[1754263200617,6.76093392,163.32,163.26,18.409991]
[1754263200921,6.76093392,163.32,163.28,6.76093392]
[1754263200922,0.66,163.32,163.28,6.76093392]
[1754263201236,0.66,163.32,163.28,7.46093392]
[1754263201421,7.42093392,163.32,163.27,6.76093392]
[1754263201726,0.66,163.32,163.28,6.76093392]
[1754263201921,6.76093392,163.33,163.26,18.409991]
[1754263202229,6.76093392,163.33,163.29,7.46093392]
[1754263202608,6.76093392,163.33,163.29,0.7]
[1754263202810,0.03,163.35,163.29,0.7]
[1754263202811,11.50547826,163.35,163.3,10.81547826]
[1754263203019,44.94,163.34,163.3,11.51547826]
[1754263203531,56.41547826,163.34,163.29,10.81547826]
[1754263203715,0.66,163.33,163.29,10.81547826]
[1754263204309,0.66,163.33,163.29,11.51547826]
[1754263204530,55.75547826,163.34,163.29,11.51547826]
[1754263204864,0.03,163.35,163.3,10.81547826]
[1754263205021,44.95,163.35,163.32,10.81547826]
[1754263205225,10.81547826,163.33,163.27,0.7]
[1754263205411,11.47547826,163.32,163.27,0.7]
[1754263205731,10.81547826,163.3,163.25,11.57547826]
[1754263205928,56.35547826,163.31,163.26,29.92433826]
[1754263206430,56.35547826,163.31,163.26,0.7]
[1754263206608,56.35547826,163.31,163.26,29.92433926]
[1754263206929,44.88,163.31,163.28,10.81547826]
[1754263207910,45.54,163.31,163.27,10.81547826]
[1754263208113,45.54,163.31,163.26,18.408861]
[1754263208315,10.81547826,163.29,163.25,0.06]
[1754263208738,11.47547826,163.28,163.25,0.06]
[1754263208938,44.84,163.27,163.25,0.06]
[1754263209450,45.5,163.27,163.25,0.06]
[1754263211029,55.65547826,163.27,163.25,0.06]
[1754263211234,11.47547826,163.26,163.25,0.06]
[1754263211849,16.78468397,163.23,163.17,11.515478]
[1754263212147,10.81547826,163.18,163.17,11.515478]
[1754263212365,56.19547826,163.18,163.17,11.515478]
[1754263212533,56.19547826,163.18,163.13,10.81547826]
[1754263212734,55.61547826,163.18,163.13,10.81547826]
[1754263212950,44.8,163.18,163.14,11.51547826]
[1754263214153,56.19547826,163.18,163.12,12.215478]
[1754263214454,11.39547826,163.17,163.12,11.51547826]
[1754263215351,10.81547826,163.15,163.09,0.9]
[1754263215655,44.76,163.14,163.1,10.81547826]
[1754263215970,44.76,163.14,163.1,11.51547826]
[1754263216165,45.34,163.14,163.09,0.2]
[1754263216356,10.81547826,163.13,163.09,0.2]
[1754263216558,0.58,163.13,163.09,0.2]
[1754263216768,11.39547826,163.13,163.09,0.2]
[1754263217266,44.72,163.12,163.09,0.2]
[1754263217655,56.11547826,163.12,163.09,0.2]
[1754263217966,11.39547826,163.11,163.09,0.2]
[1754263218151,10.81547826,163.1,163.09,0.2]
[1754263218353,11.39547826,163.1,163.09,0.2]
[1754263225484,28.18016223,163.1,163.09,0.2]
[1754263226559,38.18016223,163.1,163.09,0.2]
[1754263226954,28.18016223,163.1,163.09,0.2]
[1754263227168,38.18016223,163.1,163.09,0.2]
[1754263227683,26.78468397,163.09,163.08,0.06]
[1754263227849,82.84016223,163.09,163.08,0.06]
[1754263230256,93.65564049,163.09,163.08,0.06]
[1754263230571,82.84016223,163.09,163.08,0.06]
[1754263233274,17.36468397,163.09,163.08,0.06]
[1754263233594,72.20016223,163.09,163.08,0.06]
[1754263233985,72.78016223,163.09,163.08,0.06]
[1754263237173,61.96468397,163.09,163.08,0.06]
[1754263237471,27.60016223,163.09,163.08,0.06]
[1754263237678,72.20016223,163.09,163.08,0.06]
[1754263238983,10.81547826,163.1,163.08,0.76]
[1754263239192,44.62,163.09,163.08,0.76]
[1754263239585,72.80016223,163.09,163.08,0.06]
[1754263239899,72.22016223,163.09,163.08,0.06]
[1754263240083,72.80016223,163.09,163.08,0.06]
[1754263240691,68.76903327,163.09,163.08,0.06]
[1754263241533,94.76903327,163.09,163.08,0.06]
[1754263241801,59.56903327,163.08,163.07,0.06]
[1754263242010,60.14903327,163.08,163.07,0.06]
[1754263242184,50.14903327,163.08,163.07,0.06]
[1754263242386,60.14903327,163.08,163.07,0.06]
[1754263242714,63.64319531,163.07,163.06,0.06]
[1754263242907,108.20319531,163.07,163.06,0.06]
[1754263243123,108.78319531,163.07,163.06,0.06]
[1754263243421,16.78468397,163.06,163.0,0.7]
[1754263243586,27.64319531,163.01,163.0,0.7]
[1754263243789,72.18319531,163.01,163.0,0.7]
[1754263244514,27.64319531,163.01,163.0,0.7]
[1754263244718,72.18319531,163.01,163.0,0.7]
[1754263244915,61.32468397,163.01,163.0,0.7]
[1754263245124,27.64319531,163.01,163.0,0.7]
[1754263245320,72.18319531,163.01,163.0,0.7]
[1754263245921,16.78468397,163.0,162.99,0.66]
[1754263246106,27.64319531,163.0,162.99,0.66]
[1754263246336,27.64319531,163.0,162.95,10.85851134]
[1754263246525,44.54,162.99,162.95,10.85851134]
[1754263246736,44.54,162.99,162.96,10.85851134]
[1754263247111,44.54,162.99,162.97,0.66]
[1754263248205,27.64319531,162.98,162.96,0.66]
[1754263248411,16.78468397,162.96,162.94,0.66]
[1754263248614,55.39851134,162.95,162.94,0.66]
[1754263250209,44.54,162.95,162.94,0.66]
[1754263250939,44.6,162.95,162.94,0.66]
[1754263251132,55.45851134,162.95,162.94,0.66]
[1754263251312,55.45851134,162.95,162.92,0.86]
[1754263251519,27.64319531,162.94,162.93,0.66]
[1754263251849,16.78468397,162.95,162.94,0.66]
[1754263252046,72.20319531,162.95,162.92,0.2]
[1754263252217,72.20319531,162.95,162.92,0.86]
[1754263252812,61.34468397,162.95,162.93,0.66]
[1754263253611,26.00164908,163.03,162.93,0.66]
[1754263253840,16.78468397,162.97,162.93,11.51851134]
[1754263254038,44.58,162.96,162.94,0.66]
[1754263254336,16.78468397,163.0,162.95,10.85851134]
[1754263254559,44.56,162.99,162.96,0.66]
[1754263254730,27.64319531,163.0,162.96,0.66]
[1754263255044,44.56,162.99,162.96,0.66]
[1754263256048,44.56,162.99,162.92,32.33795465]
[1754263256244,55.41851134,162.99,162.97,0.66]
[1754263256967,44.56,162.99,162.95,10.85851134]
[1754263257267,16.78468397,162.99,162.98,0.66]
[1754263257486,61.30468397,162.99,162.98,0.66]
[1754263258942,72.16319531,162.99,162.96,0.66]
[1754263259142,72.16319531,162.99,162.94,10.85851134]
[1754263259143,72.16319531,162.99,162.97,0.66]
[1754263260240,61.30468397,162.99,162.97,0.66]
[1754263260448,72.16319531,162.99,162.97,0.66]
[1754263260644,16.78468397,162.95,162.92,0.2]
[1754263260969,10.85851134,162.93,162.92,0.2]
[1754263261170,27.64319531,162.93,162.92,0.2]
[1754263261382,10.85851134,162.94,162.92,0.2]
[1754263261586,44.46,162.93,162.92,0.2]
[1754263261794,16.78468397,162.95,162.93,0.66]
[1754263261958,26.0,162.98,162.93,0.66]
[1754263262154,48.68691972,162.97,162.94,10.85851134]
[1754263262365,44.58,162.97,162.95,0.66]
[1754263262560,44.58,162.97,162.96,0.66]
[1754263263096,44.58,162.97,162.94,10.85851134]
[1754263263097,44.58,162.97,162.94,0.66]
[1754263263261,44.58,162.97,162.95,0.66]
[1754263263454,44.58,162.97,162.94,10.85851134]
[1754263263653,44.58,162.97,162.93,10.85851134]
[1754263263855,36.85851134,162.98,162.94,0.66]
[1754263264085,44.58,162.96,162.94,0.66]
[1754263264459,55.43851134,162.96,162.92,0.2]
[1754263264780,51.93689461,162.96,162.93,0.66]
[1754263265452,5.08313708,163.02,162.95,7.35689461]
[1754263265652,4.11047956,163.02,162.98,7.35689461]
[1754263265952,61.32468397,163.01,162.99,0.66]
[1754263266152,61.32468397,163.01,162.97,8.01689461]
[1754263266378,61.32468397,163.01,162.98,0.66]
[1754263266572,61.32468397,163.01,162.98,8.01689461]
[1754263266975,61.32468397,163.01,162.99,0.66]
[1754263268394,26.0,163.03,162.99,7.35689461]
[1754263268556,4.11487621,163.02,163.0,0.66]
[1754263268775,44.5,163.01,163.0,0.66]
[1754263270517,44.5,163.01,162.97,7.35689461]
[1754263270685,33.93689461,163.03,162.98,7.35689461]
[1754263270884,61.24468397,163.02,162.99,0.66]
[1754263273015,7.35689461,163.0,162.95,0.66]
[1754263273327,7.35689461,163.0,162.92,0.2]
[1754263273328,7.35689461,162.96,162.92,0.2]
[1754263273479,51.77689461,162.95,162.92,0.2]
[1754263273685,44.42,162.95,162.92,0.91]
[1754263273917,44.42,162.95,162.92,0.2]
[1754263273918,51.77689461,162.95,162.92,0.2]
[1754263274114,24.72157858,162.94,162.92,0.2]
[1754263274278,68.56157858,162.93,162.92,0.2]
[1754263274484,69.14157858,162.93,162.92,0.2]
[1754263275393,69.14157858,162.93,162.82,0.71]
[1754263275394,10.0,162.83,162.82,0.71]
[1754263275597,54.4,162.83,162.82,8.06689461]
[1754263275808,10.0,162.8,162.78,10.52850961]
[1754263275980,44.4,162.79,162.78,8.06689461]
[1754263276391,54.4,162.79,162.78,8.06689461]
[1754263276787,54.4,162.79,162.78,12.49966773]
[1754263277299,54.4,162.79,162.76,12.49966773]
[1754263277485,10.0,162.77,162.75,6.14425798]
[1754263277687,10.0,162.77,162.76,11.78966773]
[1754263277911,54.4,162.77,162.76,12.49966773]
[1754263278298,10.0,162.79,162.76,12.49966773]
[1754263278493,10.0,162.82,162.79,6.14288346]
[1754263278682,54.38,162.81,162.8,0.71]
[1754263278891,54.38,162.81,162.8,12.49966773]
[1754263279117,44.38,162.81,162.8,12.49966773]
[1754263279500,54.38,162.81,162.8,12.49966773]
[1754263279693,54.38,162.81,162.77,0.71]
[1754263279888,54.38,162.81,162.79,11.78966773]
[1754263280210,54.38,162.81,162.8,12.49966773]
[1754263281418,54.42,162.81,162.8,12.49966773]
[1754263281623,54.42,162.81,162.8,18.64217387]
[1754263282000,54.42,162.81,162.8,12.49966773]
[1754263282200,54.4,162.81,162.77,0.71]
[1754263282403,54.4,162.81,162.75,6.14439324]
[1754263282722,10.0,162.77,162.75,11.78966773]
[1754263283028,10.0,162.75,162.74,11.78966773]
[1754263283206,10.0,162.74,162.73,11.78966773]
[1754263286641,54.46,162.74,162.73,18.64481613]
[1754263288914,54.46,162.74,162.73,12.49966773]
[1754263289123,54.46,162.74,162.73,11.78966773]
[1754263292423,10.0,162.74,162.73,12.49966773]
[1754263292621,54.4,162.74,162.73,12.49966773]
[1754263292840,54.4,162.74,162.73,0.71]
[1754263293051,54.4,162.74,162.73,12.49966773]
[1754263293364,54.4,162.74,162.73,11.78966773]
[1754263293562,10.0,162.72,162.68,6.91672046]
[1754263293859,10.0,162.7,162.69,18.473475]
[1754263294023,10.0,162.7,162.68,0.06]
[1754263294230,54.38,162.69,162.68,0.06]
[1754263294931,54.38,162.69,162.68,11.84966773]
[1754263295342,54.38,162.69,162.68,0.06]
[1754263296247,54.96,162.69,162.68,0.06]
[1754263296547,54.38,162.69,162.68,0.06]
[1754263299248,97.74468397,162.69,162.68,0.06]
[1754263301164,52.78468397,162.69,162.68,0.06]
[1754263301453,97.10468397,162.69,162.68,0.06]
[1754263302753,54.28,162.69,162.68,11.86716029]
[1754263302922,54.28,162.69,162.68,12.57716029]
[1754263303247,10.0,162.69,162.68,12.57716029]
[1754263303452,10.0,162.69,162.68,18.72419741]
[1754263303622,54.28,162.69,162.68,18.72419741]
[1754263304030,54.28,162.69,162.68,0.77]
[1754263304243,54.28,162.69,162.68,12.57716029]
[1754263304552,10.0,162.71,162.68,18.72419741]
[1754263304755,10.0,162.69,162.68,0.77]
[1754263305956,10.0,162.69,162.68,12.57716029]
[1754263307228,10.0,162.71,162.68,18.72419741]
[1754263307435,54.28,162.7,162.69,0.68]
[1754263307657,54.28,162.7,162.69,11.80716029]
[1754263307863,54.28,162.7,162.68,11.86716029]
[1754263308083,54.28,162.7,162.69,11.80716029]
[1754263308239,54.28,162.7,162.69,12.48716029]
[1754263308750,10.0,162.7,162.69,12.48716029]
[1754263308934,54.3,162.7,162.69,12.48716029]
[1754263309354,54.3,162.7,162.69,18.63381958]
[1754263310132,44.28,162.7,162.69,18.63381958]
[1754263310456,10.0,162.72,162.69,18.63381958]
[1754263310664,44.28,162.71,162.7,0.68]
[1754263310839,44.28,162.71,162.7,12.48716029]
[1754263311240,44.28,162.71,162.7,18.63344178]
[1754263312240,44.28,162.71,162.7,12.48716029]
[1754263313065,44.28,162.71,162.7,18.63344178]
[1754263314151,44.28,162.71,162.7,6.82628149]
[1754263314349,44.28,162.71,162.7,18.63344178]
[1754263318466,10.0,162.72,162.7,18.63344178]
[1754263318767,44.28,162.71,162.7,6.14628149]
[1754263318950,44.28,162.71,162.7,17.95344178]
[1754263319361,44.28,162.71,162.7,18.63344178]
[1754263320364,10.0,162.72,162.7,18.63344178]
[1754263320572,44.24,162.71,162.69,24.62008949]
[1754263320743,44.24,162.71,162.7,7.37432887]
[1754263320946,10.0,162.69,162.68,10.06]
[1754263321171,54.22,162.69,162.68,0.06]
[1754263321960,54.22,162.69,162.68,7.43432887]
[1754263322269,54.8,162.69,162.68,0.06]
[1754263323968,10.0,162.69,162.68,7.43432887]
[1754263324163,10.0,162.69,162.68,0.06]
[1754263324372,10.0,162.69,162.68,8.11432887]
[1754263324373,44.18,162.69,162.68,8.11432887]
[1754263324665,44.18,162.69,162.68,14.26136599]
[1754263324855,54.18,162.69,162.68,14.26136599]
[1754263325044,44.18,162.69,162.68,14.26136599]
[1754263325867,44.18,162.7,162.68,14.26136599]
[1754263326070,44.18,162.7,162.69,7.37432887]
[1754263326254,44.18,162.7,162.69,8.05432887]
[1754263326769,44.18,162.7,162.69,14.20098816]
[1754263326967,0.03,162.74,162.69,36.94196525]
[1754263327142,0.03,162.74,162.73,7.37432887]
[1754263327476,44.19,162.74,162.73,7.37432887]
[1754263327643,44.19,162.74,162.73,8.05432887]
[1754263328869,44.19,162.74,162.73,14.19947727]
[1754263329464,0.03,162.74,162.73,14.19947727]
[1754263329651,44.19,162.74,162.73,14.19947727]
[1754263331148,44.19,162.74,162.73,7.37432887]
[1754263331783,0.03,162.74,162.73,8.05432887]
[1754263331988,0.03,162.79,162.75,26.0]
[1754263332281,44.4,162.83,162.78,14.74865774]
[1754263332479,44.4,162.83,162.82,7.37432887]
[1754263332665,44.4,162.83,162.82,8.05432887]
[1754263332865,10.0,162.84,162.82,8.05432887]
[1754263333086,44.38,162.84,162.83,7.37432887]
[1754263333286,54.38,162.84,162.83,7.37432887]
[1754263333476,54.99,162.84,162.79,6.14252656]
[1754263333781,10.0,162.82,162.81,7.37432887]
[1754263334283,10.61,162.82,162.8,7.37432887]
[1754263334460,44.36,162.81,162.8,7.37432887]
[1754263334659,54.36,162.81,162.8,7.37432887]
[1754263334879,10.0,162.8,162.79,7.37432887]
[1754263335184,10.61,162.8,162.79,7.37432887]
[1754263335561,10.0,162.8,162.79,7.37432887]
[1754263335854,10.0,162.8,162.78,7.37432887]
[1754263336049,10.0,162.79,162.77,7.37432887]
[1754263336255,54.34,162.78,162.77,7.37432887]
[1754263336653,51.86358249,162.97,162.77,7.37432887]
[1754263336654,44.32,162.79,162.77,12.47650096]
[1754263336893,54.32,162.79,162.78,12.47650096]
[1754263338573,10.0,162.79,162.78,18.6197618]
[1754263338775,44.3,162.8,162.78,18.6197618]
[1754263338964,44.3,162.8,162.79,12.47650096]
[1754263339277,44.3,162.82,162.79,12.47650096]
[1754263339481,44.3,162.82,162.81,11.78650096]
[1754263339666,10.0,162.84,162.81,17.92862982]
[1754263339871,10.0,162.84,162.83,11.78650096]
[1754263340083,54.28,162.84,162.83,11.78650096]
[1754263341276,44.28,162.84,162.83,11.78650096]
[1754263341459,10.0,162.86,162.83,11.78650096]
[1754263341660,10.0,162.86,162.84,11.78650096]
[1754263341871,10.0,162.85,162.84,11.78650096]
[1754263342069,44.28,162.85,162.84,11.78650096]
[1754263342473,10.0,162.85,162.84,11.78650096]
[1754263342685,54.28,162.85,162.84,11.78650096]
[1754263343572,54.28,162.85,162.81,6.83204193]
[1754263343573,54.28,162.85,162.81,0.69]
[1754263343780,0.61,162.84,162.79,26.69]
[1754263343973,54.26,162.83,162.79,26.69]
[1754263344174,44.24,162.82,162.81,11.78650096]
[1754263344587,10.0,162.83,162.81,11.78650096]
[1754263344893,54.26,162.83,162.82,12.47650096]
[1754263345466,54.26,162.83,162.82,18.61825258]
[1754263345883,54.26,162.83,162.82,11.78650096]
[1754263346189,44.26,162.83,162.82,11.78650096]
[1754263346370,54.26,162.83,162.82,11.78650096]
[1754263346772,54.26,162.83,162.82,12.47650096]
[1754263346968,54.26,162.86,162.82,18.61825258]
[1754263347176,10.0,162.88,162.85,11.78650096]
[1754263347370,44.22,162.87,162.85,0.69]
[1754263347577,54.22,162.87,162.85,6.83060723]
[1754263348582,54.22,162.87,162.86,11.78650096]
[1754263348782,54.83,162.87,162.81,0.69]
[1754263349101,10.0,162.86,162.81,0.69]
[1754263349304,44.2,162.85,162.82,0.69]
[1754263349800,44.2,162.85,162.82,6.83143572]
[1754263350002,54.81,162.85,162.8,26.0]
[1754263350187,54.81,162.85,162.84,11.78650096]
[1754263350704,54.81,162.85,162.8,0.69]
[1754263350997,10.0,162.83,162.81,11.78650096]
[1754263351192,54.79,162.82,162.81,11.78650096]
[1754263351370,54.18,162.82,162.81,11.78650096]
[1754263351794,44.18,162.82,162.81,12.47650096]
[1754263352101,10.0,162.88,162.81,33.97395197]
[1754263352400,0.71,162.91,162.82,1.30417516]
[1754263352401,54.18,162.87,162.82,1.30417516]
[1754263352580,54.18,162.87,162.83,0.69]
[1754263353105,54.18,162.87,162.84,0.69]
[1754263353266,54.79,162.87,162.81,6.14212886]
[1754263353468,54.79,162.87,162.86,11.78650096]
[1754263353868,54.18,162.87,162.86,11.78650096]
[1754263354089,54.18,162.87,162.83,6.14134346]
[1754263354284,54.18,162.87,162.86,11.78650096]
[1754263354905,54.18,162.87,162.83,6.83134346]
[1754263355122,54.18,162.87,162.86,11.78650096]
[1754263355310,54.79,162.87,162.86,11.78650096]
[1754263355477,54.79,162.87,162.8,0.69]
[1754263355812,10.0,162.84,162.83,11.78650096]
[1754263356098,44.14,162.84,162.83,11.78650096]
[1754263356306,10.0,162.83,162.82,11.78650096]
[1754263356710,10.61,162.83,162.78,0.69]
[1754263356884,10.0,162.8,162.79,11.78650096]
[1754263357080,54.12,162.8,162.79,11.78650096]
[1754263361596,54.12,162.8,162.77,6.20363748]
[1754263361793,54.12,162.8,162.79,11.78650096]
[1754263362511,54.73,162.8,162.77,0.06]
[1754263362698,10.61,162.79,162.77,0.06]
[1754263362901,54.06,162.78,162.77,0.06]
[1754263363791,54.67,162.78,162.77,0.06]
[1754263366208,66.45650096,162.78,162.77,0.06]
[1754263366400,83.24118493,162.78,162.77,0.06]
[1754263370832,71.45468397,162.78,162.77,0.06]
[1754263371326,78.82858551,162.78,162.77,0.06]
[1754263372138,71.45468397,162.78,162.77,0.06]
[1754263372317,78.82858551,162.78,162.77,0.06]
[1754263378337,70.68468397,162.78,162.77,0.71]
[1754263379138,70.68468397,162.78,162.77,0.06]
[1754263380238,78.05858551,162.78,162.77,0.06]
[1754263380446,70.68468397,162.78,162.77,0.06]
[1754263383060,70.68468397,162.78,162.77,0.71]
[1754263383452,10.0,162.78,162.77,0.71]
[1754263383654,70.68468397,162.78,162.77,0.06]
[1754263383845,78.05858551,162.78,162.77,0.06]
[1754263384841,78.66858551,162.78,162.77,0.06]
[1754263386141,83.24073659,162.78,162.77,0.06]
[1754263388275,26.78468397,162.76,162.75,0.06]
[1754263388446,10.0,162.69,162.68,0.06]
[1754263388955,53.9,162.69,162.68,0.06]
[1754263389152,53.9,162.69,162.68,0.71]
[1754263389464,53.9,162.69,162.68,8.08390154]
[1754263389877,53.9,162.69,162.68,0.71]
[1754263390236,53.9,162.69,162.68,0.06]
[1754263390870,53.9,162.69,162.68,0.71]
[1754263393281,10.0,162.69,162.68,0.71]
[1754263393464,52.6091,162.69,162.68,0.71]
[1754263393782,52.6091,162.69,162.68,0.06]
[1754263395070,76.76768551,162.69,162.68,0.06]
[1754263395761,77.37768551,162.69,162.68,0.06]
[1754263396188,76.76768551,162.69,162.68,0.06]
[1754263396751,69.39378397,162.69,162.68,0.06]
[1754263396947,25.47378397,162.69,162.68,0.78]
[1754263397154,52.5891,162.69,162.68,8.15390154]
[1754263399578,52.5891,162.69,162.68,0.78]
[1754263401579,8.6891,162.69,162.68,8.15390154]
[1754263401777,52.6091,162.69,162.68,8.15390154]
[1754263402662,43.92,162.69,162.68,8.15390154]
[1754263402866,43.92,162.69,162.68,14.30093866]
[1754263403067,52.6091,162.69,162.68,14.30093866]
[1754263403270,8.6891,162.69,162.68,14.30093866]
[1754263403461,8.6891,162.71,162.68,14.30093866]
[1754263403655,8.6891,162.72,162.7,7.37390154]
[1754263403851,8.6891,162.72,162.69,0.72]
[1754263403852,52.6091,162.71,162.68,6.20703712]
[1754263404492,43.92,162.71,162.69,0.72]
[1754263404889,52.6091,162.71,162.69,0.72]
[1754263405096,52.6091,162.71,162.68,6.20703712]
[1754263405279,52.6091,162.71,162.7,8.09390154]
[1754263405592,52.6091,162.71,162.7,7.37390154]
[1754263405978,52.6091,162.71,162.69,7.37390154]
[1754263406474,52.6091,162.71,162.69,8.09390154]
[1754263406876,52.6091,162.71,162.7,0.72]
[1754263407498,52.6091,162.71,162.7,8.09390154]
[1754263408876,52.6091,162.71,162.7,7.37390154]
[1754263409195,52.6091,162.71,162.68,0.78]
[1754263409196,52.6091,162.71,162.69,7.37390154]
[1754263409497,52.6091,162.71,162.7,7.37390154]
[1754263410271,52.6091,162.71,162.69,7.37390154]
[1754263410494,52.6091,162.71,162.7,7.37390154]
[1754263410698,52.6091,162.71,162.68,7.43390154]
[1754263410871,8.6891,162.7,162.68,7.43390154]
[1754263411076,43.9,162.69,162.68,8.15390154]
[1754263413299,52.5891,162.69,162.68,0.06]
[1754263415014,69.98378397,162.69,162.68,0.06]
[1754263415373,69.37378397,162.69,162.68,0.06]
[1754263416905,73.96576533,162.69,162.68,0.06]
[1754263417103,81.94966687,162.69,162.68,0.06]